[Event "Fall GM-B Norm Invitational 2022"]
[Site "Charlotte"]
[Date "2022.11.20"]
[Round "6"]
[White "Ozenir, Ekin Baris"]
[Black "Williams, Justus"]
[Result "1-0"]
[ECO "E91"]
[WhiteElo "2352"]
[BlackElo "2395"]
[Annotator "TA"]
[PlyCount "59"]
[EventDate "2022.11.18"]
[EventType "tourn"]
[EventCountry "USA"]
[SourceTitle "playchess.com"]
[Source "ChessBase"]
[SourceQuality "1"]
[TimeControl "5400+30"]

{[%evp 12,59,40,38,57,32,31,38,95,92,97,96,92,92,183,173,185,152,155,125,118,121,314,309,283,281,297,309,266,218,191,131,203,217,299,270,638,619,29982,29983,29987,29988,29988,29986,29986,29987,29985,991,941,896]} 1. Nf3 {[%emt 0:00:09]} d6 {[%emt 0:08:04]} 2. d4 {[%emt 0:01:07]} Nf6 {[%emt 0:00:42]} 3. c4 {[%emt 0:04:26]} g6 {[%emt 0:00:28]} 4. Nc3 {[%emt 0:00:20]} Bg7 {[%emt 0:00:17]} 5. e4 {[%emt 0:00:06]} O-O {[%emt 0:01:11]} 6. Be2 {[%emt 0:00:11]} Na6 {[%emt 0:01:23]} 7. Be3 {[%emt 0:04:16]} c6 {[%emt 0:01:47][%cal Oe7e5] E91: King's Indian: Classical: 6 Be2, unusual replies including 6...c5 and 6...Bg4.} 8. a3 {[%emt 0:04:28]} e5 {[%emt 0:03:30]} 9. d5 {[%emt 0:05:29]} c5 {[%emt 0:02:49]} (9... cxd5 $14 10. cxd5 Ng4) 10. Nd2 $16 {[%emt 0:00:16] [#]} h5 $146 {[%emt 0:04:50]} ({Predecessor:} 10... Ne8 11. g4 Bf6 12. Nf1 Bg5 13. Qd2 Bxe3 14. Qxe3 Ng7 15. Rg1 Bd7 16. Qh6 Qe7 {½-½ (33) Arshaev,A (2152)-Kryakvin,D (2529) Minsk 2015}) 11. h3 {[%emt 0:01:18][%cal Bh2h3,Bh3g4][%mdl 32] Prevents Ng4.} Nh7 {[%emt 0:02:39]} 12. g4 {[%emt 0:03:11]} hxg4 {[%emt 0:04:21]} (12... h4 $16) 13. hxg4 $18 {[%emt 0:00:44]} Bf6 {[%emt 0:00:27]} 14. Qc1 {[%emt 0:02:57]} Bd7 {[%emt 0:05:02]} 15. Rg1 {[%emt 0:05:18] White is more active.} Ng5 {[%emt 0:07:34]} 16. Nf3 {[%emt 0:07:36]} Nh3 {[%emt 0:04:11] Loses the game.} (16... Nxf3+ $16 {was necessary.} 17. Bxf3 Bg7) 17. Rg3 {[%emt 0:03:30]} Nf4 {[%emt 0:00:52]} 18. Bxf4 {[%emt 0:01:13]} exf4 {[%emt 0:00:03]} 19. Qxf4 {[%emt 0:00:03]} Re8 {[%emt 0:06:20]} 20. Kf1 {[%emt 0:02:34][%cal Be1f1,Bf1g2,Bg2f2,Bf2g2,Bg2f3][%mdl 32]} (20. Qxd6 Bxc3+ 21. bxc3 Rxe4 $16) 20... Qe7 {[%emt 0:01:38]} 21. Bd3 {[%emt 0:01:07]} ({White should play} 21. Kg2 $18) 21... Rab8 {[%emt 0:04:02]} (21... Kg7 $16 22. g5 (22. Rh3 Rh8 $16) 22... Be5 23. Nxe5 dxe5) 22. Kg2 {[%emt 0:07:16] And now Rh3 would win.} b5 {[%emt 0:05:35]} 23. Rh1 {[%emt 0:09:10] Black must now prevent Rgh3.} ({Much less strong is} 23. cxb5 $6 c4 $18) 23... bxc4 $2 {[%emt 0:01:33] [#]} (23... Bg7 24. cxb5 (24. Nxb5 Bxb5 25. cxb5 c4 $18) 24... c4) 24. Rgh3 $1 {[%emt 0:13:05][%cal Of4h2] Threatens to win with Qh2!} Rxb2 {[%emt 0:11:09] [#]} (24... Bxg4 25. Qxg4) 25. Qh2 $1 {[%emt 0:02:54]} Rxf2+ {[%emt 0:02:58]} (25... Qe5 26. Nxe5) 26. Kxf2 {[%emt 0:00:10]} Bd4+ {[%emt 0:00:25]} 27. Kg2 {[%emt 0:00:42]} Qf6 {[%emt 0:01:03]} 28. e5 {[%emt 0:00:23]} Bxe5 {[%emt 0:01:43]} 29. Ne4 {[%emt 0:00:38]} (29. Nxe5 $142 Qxe5 30. Rh8+ Kg7 31. Qh7+ Kf6 32. Rf1+ Bf5 33. Rxf5+ Qxf5 34. gxf5) 29... Qxf3+ {[%emt 0:01:26]} 30. Kxf3 {[%emt 0:00:31] Weighted Error Value: White=0.11 (very precise) /Black=0.82} 1-0

[Event "Fall GM-B Norm Invitational 2022"]
[Site "Charlotte"]
[Date "2022.11.21"]
[Round "7"]
[White "Korley, Kassa"]
[Black "Beradze, Irakli"]
[Result "0-1"]
[ECO "A07"]
[WhiteElo "2451"]
[BlackElo "2494"]
[Annotator "TA"]
[PlyCount "110"]
[EventDate "2022.11.18"]
[EventType "tourn"]
[EventCountry "USA"]
[SourceTitle "playchess.com"]
[Source "ChessBase"]
[SourceQuality "1"]
[TimeControl "5400+30"]

{[%evp 21,110,49,45,53,66,54,59,53,56,63,66,54,66,33,36,0,0,-27,-22,-23,-24,-22,-2,-20,-18,-16,-20,-43,-43,-38,-39,-71,-75,-79,-92,-101,-27,-27,-27,-29,-19,-124,-118,-251,-250,-245,-224,-212,-149,-271,-268,-266,-236,-278,-269,-291,-292,-338,-307,-379,-360,-415,-414,-343,-399,-651,-625,-1636,-1427,-1626,-1441,-1478,-1401,-1016,-986,-12833,-12833,-12843,-12843,-12843,-12843,-12844,-12843,-12844,-12844,-12845,-12845,-12845,-12846,-12846,-12846]} 1. Nf3 {[%emt 0:00:02]} d5 {[%emt 0:03:37]} 2. g3 {[%emt 0:00:03]} c6 {[%emt 0:00:37]} 3. Bg2 {[%emt 0:00:06]} Bf5 {[%emt 0:00:38]} 4. O-O {[%emt 0:00:07]} e6 {[%emt 0:00:17]} 5. d3 {[%emt 0:00:15]} h6 {[%emt 0:00:17]} 6. c4 {[%emt 0:01:03]} Nf6 {[%emt 0:02:04]} 7. cxd5 {[%emt 0:05:40]} cxd5 {[%emt 0:01:21]} 8. Qb3 {[%emt 0:07:07]} Qb6 {[%emt 0:06:08]} 9. Qxb6 {[%emt 0:00:18]} axb6 {[%emt 0:00:01]} 10. Nc3 {[%emt 0:00:07]} Nc6 {[%emt 0:05:54]} 11. Nb5 {[%emt 0:09:40]} Kd7 {[%emt 0:02:32]} 12. Bd2 {[%emt 0:05:17] A11: English Opening: 1...c6.} Bc5 {[%emt 0:09:39]} 13. a3 {[%emt 0:05:14] [#]} Bg4 $146 {[%emt 0:04:23]} ({Predecessor:} 13... Rhc8 14. Rac1 Bg4 15. Bc3 Bxf3 16. Bxf3 Na7 17. Nxa7 Rxa7 18. e4 d4 {1-0 (56) Jakovenko,D (2732)-Zhao,Y (2383) China 2018}) 14. b4 {[%emt 0:05:05] White is slightly better.} Bxf3 {[%emt 0:04:38]} 15. Bxf3 {[%emt 0:00:08]} Bd4 {[%emt 0:00:35]} 16. Ra2 {[%emt 0:06:40]} Be5 {[%emt 0:01:38]} 17. Rc1 {[%emt 0:08:41]} Na7 {[%emt 0:06:24]} 18. Nxa7 {[%emt 0:00:57]} Rxa7 {[%emt 0:00:04]} 19. Be3 {[%emt 0:05:32]} Rha8 {[%emt 0:06:41]} 20. Bxb6 {[%emt 0:00:20]} Rxa3 {[%emt 0:00:03]} 21. Rac2 {[%emt 0:00:40]} Rb3 {[%emt 0:06:47]} 22. Bc5 {[%emt 0:04:20]} (22. d4 $5 {[%cal Rd4e5]} Bd6 23. Bc5 $11) 22... Bb2 {[%emt 0:05:52]} 23. Rb1 {[%emt 0:03:49]} Ra1 {[%emt 0:00:18]} 24. Rxa1 {[%emt 0:00:02]} Bxa1 {[%emt 0:00:05][%cal Bb2a1,Ba1c3,Bc3b4,Bb4e7][%mdl 32]} 25. Ra2 {[%emt 0:00:49]} Bc3 {[%emt 0:02:27]} 26. Ra7 {[%emt 0:03:34]} Kc6 {[%emt 0:07:13]} 27. Ra8 {[%emt 0:05:22]} Bxb4 {[%emt 0:05:08]} 28. Bd4 {[%emt 0:01:53]} Kd7 {[%emt 0:02:47]} (28... Be7 $1 $17) 29. Bxf6 $11 {[%emt 0:01:35]} gxf6 {[%emt 0:00:01][%mdl 4096] Endgame KRB-KRB} 30. Bh5 {[%emt 0:00:07]} Rb2 {[%emt 0:01:23]} 31. Rh8 {[%emt 0:01:12]} (31. Kg2 $11 {remains equal.}) 31... b5 $17 {[%emt 0:00:47][%cal Bb7b5,Bb5b4,Bb4b3,Bb3b2][%mdl 32]} 32. Rxh6 {[%emt 0:05:10] [#] White does not recover from this.} (32. Bxf7 $17 Bc3 33. Be8+ Ke7 34. Bxb5) 32... Be7 $1 $19 {[%emt 0:00:34]} 33. Rh8 {[%emt 0:00:44]} b4 {[%emt 0:00:04]} 34. Ra8 {[%emt 0:04:16]} Bd6 {[%emt 0:05:46]} 35. Ra1 {[%emt 0:04:35] [#] Against Rb1+} (35. Ra7+ $17 Kc6 36. Ra6+ Kc7 37. Ra1) 35... b3 $1 {[%emt 0:05:40] aiming for ...Rc2.} 36. e3 {[%emt 0:00:04]} d4 {[%emt 0:02:18]} 37. exd4 {[%emt 0:00:45]} Rd2 {[%emt 0:01:06]} 38. Rb1 {[%emt 0:00:41]} b2 {[%emt 0:00:03]} ({Inferior is} 38... Rxd3 39. Be2 Rd2 40. Bb5+ Ke7 41. Rxb3 $11) 39. Bd1 {[%emt 0:01:59]} Bb4 {[%emt 0:00:20]} 40. Bb3 {[%emt 0:01:39]} Bc3 {[%emt 0:00:05]} 41. d5 {[%emt 0:00:55]} Bd4 {[%emt 0:00:45]} 42. dxe6+ {[%emt 0:00:06]} fxe6 {[%emt 0:00:00]} 43. Ba2 $2 {[%emt 0:02:19]} (43. Kg2) 43... Rxf2 {[%emt 0:00:38] Black is clearly winning.} 44. Rf1 {[%emt 0:00:58]} Rc2+ {[%emt 0:01:15]} 45. Kh1 {[%emt 0:00:06]} f5 {[%emt 0:00:48] ...Kd6 is the strong threat.} 46. Bb1 {[%emt 0:00:03]} Re2 {[%emt 0:00:17]} 47. Ba2 {[%emt 0:00:19]} Ke7 {[%emt 0:00:11]} 48. Bb1 {[%emt 0:00:12]} Kf6 {[%emt 0:00:36]} 49. g4 {[%emt 0:00:03]} Kg5 {[%emt 0:00:05]} 50. gxf5 {[%emt 0:00:04]} exf5 {[%emt 0:00:02]} 51. Ba2 {[%emt 0:00:26]} f4 {[%emt 0:01:17]} 52. Bd5 {[%emt 0:00:58]} f3 {[%emt 0:00:20]} 53. Bxf3 {[%emt 0:03:22]} Rf2 {[%emt 0:00:05]} 54. Rg1+ {[%emt 0:00:05]} Kf4 {[%emt 0:00:10]} 55. Bg2 {[%emt 0:00:51] [#]} Rxg2 $1 {[%emt 0:00:05][%mdl 512] Weighted Error Value: White=0.47/Black=0.06 (flawless)} 0-1

[Event "Fall GM-B Norm Invitational 2022"]
[Site "Charlotte"]
[Date "2022.11.21"]
[Round "7"]
[White "Woodward, Andy"]
[Black "Cruz, Cristhian"]
[Result "0-1"]
[ECO "E04"]
[WhiteElo "2447"]
[BlackElo "2552"]
[Annotator "TA"]
[PlyCount "98"]
[EventDate "2022.11.18"]
[EventType "tourn"]
[EventCountry "USA"]
[SourceTitle "playchess.com"]
[Source "ChessBase"]
[SourceQuality "1"]
[TimeControl "5400+30"]

{[%evp 23,98,14,19,8,12,12,16,14,14,7,7,2,8,2,85,-9,-6,-10,0,0,0,-19,-11,-25,-22,-39,-24,-24,-24,-24,-24,-24,-22,-24,-24,-58,-54,-75,-62,-70,-64,-60,-43,-54,0,0,0,0,0,-77,-66,-66,-66,-77,-77,-78,-66,-400,-164,-666,-669,-667,-615,-759,-639,-1496,-1449,-1827,-1704,-2022,-1827,-1507,-12070,-12840,-12840,-12827,-2223]} 1. d4 {[%emt 0:00:02]} e6 {[%emt 0:02:50]} 2. c4 {[%emt 0:00:15]} d5 {[%emt 0:00:52]} 3. Nf3 {[%emt 0:00:14]} Nf6 {[%emt 0:00:06]} 4. g3 {[%emt 0:00:08]} dxc4 {[%emt 0:01:21]} 5. Bg2 {[%emt 0:00:21]} c5 {[%emt 0:01:37]} 6. O-O {[%emt 0:00:26]} Nc6 {[%emt 0:00:34]} 7. dxc5 {[%emt 0:01:17]} Qxd1 {[%emt 0:01:15]} 8. Rxd1 {[%emt 0:00:09]} Bxc5 {[%emt 0:00:19]} 9. Nbd2 {[%emt 0:00:10]} c3 {[%emt 0:02:02]} 10. bxc3 {[%emt 0:00:10]} O-O {[%emt 0:01:48]} 11. Nb3 {[%emt 0:00:20]} Be7 {[%emt 0:00:12]} 12. c4 {[%emt 0:00:44]} Bd7 {[%emt 0:03:37]} 13. Bb2 {[%emt 0:01:32] E04: Open Catalan: 5 Nf3.} Rfd8 {[%emt 0:00:38] 13...Rfc8 injects fresh life into this line.} 14. Nfd4 {[%emt 0:00:31]} Rac8 {[%emt 0:09:02]} 15. Nb5 {[%emt 0:00:35] The position is equal.} b6 {[%emt 0:04:48]} 16. Rac1 {[%emt 0:01:54]} a5 {[%emt 0:18:55]} 17. a4 {[%emt 0:00:30]} (17. c5 {is interesting.} bxc5 18. Nd6 Rb8 19. Bxf6 gxf6 20. Nxc5 Bc8 21. Bxc6 Rxd6 22. Rxd6 Bxd6 23. a4) 17... Be8 {[%emt 0:04:19]} 18. Rxd8 {[%emt 0:00:23]} Nxd8 {[%emt 0:08:53] [#]} (18... Rxd8 $11 19. Nc7 Bd7) 19. Bf3 $146 {[%emt 0:09:23]} (19. Be5 $16 {And now Na7 would win.} Bxb5 20. cxb5 Rxc1+ 21. Nxc1) ({Predecessor:} 19. Na7) 19... Nd7 {[%emt 0:02:36]} 20. Na7 {[%emt 0:12:28]} Rc7 {[%emt 0:00:46]} 21. Nb5 {[%emt 0:00:27]} Rc8 {[%emt 0:00:10]} 22. e3 {[%emt 0:16:59]} (22. Na7 $5 {[%cal Ra7c8]} Rc7 23. Nb5 Rc8 $11) 22... Kf8 {[%emt 0:04:41]} 23. h4 {[%emt 0:05:07]} Nc6 {[%emt 0:03:27]} 24. h5 {[%emt 0:02:03]} h6 {[%emt 0:02:18]} 25. Be2 {[%emt 0:06:55]} Nc5 {[%emt 0:01:43]} 26. Nxc5 {[%emt 0:00:21]} Bxc5 {[%emt 0:00:12]} 27. Rd1 {[%emt 0:01:58]} Rd8 {[%emt 0:01:13]} 28. Rxd8 {[%emt 0:02:43]} Nxd8 {[%emt 0:02:47]} 29. Kg2 {[%emt 0:01:17]} f6 {[%emt 0:00:56]} 30. Bf3 {[%emt 0:02:03]} Ke7 {[%emt 0:00:59]} 31. g4 {[%emt 0:00:45]} Nf7 {[%emt 0:02:23]} 32. Kf1 {[%emt 0:05:34]} Nd6 {[%emt 0:03:51]} 33. Be2 {[%emt 0:00:23]} Nxb5 {[%emt 0:04:54]} (33... Bd7 $15) 34. cxb5 $15 {[%emt 0:00:35][%mdl 4096] Endgame KBB-KBB} e5 {[%emt 0:00:07]} 35. Ke1 {[%emt 0:02:57]} Bf7 {[%emt 0:01:03]} 36. Bc3 {[%emt 0:05:50]} (36. Kd2 $11) 36... Kd6 {[%emt 0:02:20] White must now prevent ...Bb3.} 37. Bd1 {[%emt 0:00:44] Inhibits Bb3.} Bb4 {[%emt 0:01:28]} 38. Bxb4+ {[%emt 0:02:27]} axb4 {[%emt 0:00:03] KB-KB} 39. Kd2 {[%emt 0:00:43]} Kc5 {[%emt 0:00:53] Threatens to win with ...Kc4.} 40. f3 $2 {[%emt 0:01:26][%mdl 8192] Loses the game.} (40. e4 $15) 40... Be6 {[%emt 0:05:37]} (40... f5 $142 {aiming for ...f4.} 41. Kc2 f4) 41. f4 $2 {[%emt 0:03:32]} (41. Kc2) 41... exf4 $19 {[%emt 0:00:48] Black is clearly winning.} 42. exf4 {[%emt 0:00:09]} Kc4 $1 {[%emt 0:02:07] Strongly threatening ...b3.} 43. Be2+ {[%emt 0:08:59] [#]} Kb3 $1 {[%emt 0:00:18]} 44. a5 {[%emt 0:01:55]} bxa5 {[%emt 0:00:04][%cal Bb6a5,Ba5a4][%mdl 32] ...a4 is the strong threat.} 45. b6 {[%emt 0:00:04]} Bc8 {[%emt 0:00:42]} 46. Bf3 {[%emt 0:01:40]} a4 {[%emt 0:00:48]} 47. Kc1 {[%emt 0:02:35]} Ka2 {[%emt 0:00:56]} ({Stronger than} 47... a3 48. Bd5+ Ka4 49. b7 Bxb7 50. Bxb7 $11) 48. Bc6 {[%emt 0:01:28]} b3 {[%emt 0:00:25] ( -> ...b2+)} 49. Bd5 {[%emt 0:00:07] [#]} Ka1 {[%emt 0:00:10] Weighted Error Value: White=0.90/Black=0.15 (very precise)} (49... Bb7 $142 $1 {[%mdl 512]} 50. Bxb7 (50. Bc4 Ka1) 50... b2+ 51. Kd2 b1=Q 52. Bd5+ Kb2) 0-1

[Event "Fall GM-B Norm Invitational 2022"]
[Site "Charlotte"]
[Date "2022.11.21"]
[Round "7"]
[White "Hilby, Craig"]
[Black "Paragua, Mark"]
[Result "0-1"]
[ECO "B90"]
[WhiteElo "2411"]
[BlackElo "2466"]
[Annotator "TA"]
[PlyCount "100"]
[EventDate "2022.11.18"]
[EventType "tourn"]
[EventCountry "USA"]
[SourceTitle "playchess.com"]
[Source "ChessBase"]
[SourceQuality "1"]
[TimeControl "5400+30"]

{[%evp 20,100,0,0,26,15,32,32,45,47,48,51,37,33,37,38,64,52,62,58,68,39,38,37,126,38,49,34,38,20,47,67,93,92,144,131,144,137,145,138,138,127,181,173,141,24,34,0,0,0,0,0,0,-193,-144,-154,0,0,0,-67,-64,-62,-47,-47,-55,-54,-51,-42,0,-341,-301,-310,-288,-435,-398,-29969,-29970,-29959,-29958,-29988,-29989,-29997,-29998]} 1. e4 {[%emt 0:02:44]} c5 {[%emt 0:00:17]} 2. Nf3 {[%emt 0:00:06]} d6 {[%emt 0:00:45]} 3. d4 {[%emt 0:00:06]} cxd4 {[%emt 0:00:05]} 4. Nxd4 {[%emt 0:00:04]} Nf6 {[%emt 0:00:09]} 5. Nc3 {[%emt 0:00:05]} a6 {[%emt 0:00:05]} 6. a4 {[%emt 0:00:24]} g6 {[%emt 0:02:35]} 7. Be2 {[%emt 0:00:59]} Bg7 {[%emt 0:00:06]} 8. Be3 {[%emt 0:00:07]} O-O {[%emt 0:01:13]} 9. O-O {[%emt 0:00:04]} Nc6 {[%emt 0:01:56]} 10. Nxc6 {[%emt 0:01:23]} bxc6 {[%emt 0:00:06]} 11. a5 {[%emt 0:00:06]} Nd7 {[%emt 0:02:33] B90: Sicilian Najdorf: Unusual White 6th moves, 6 Be3 Ng4 and 6 Be3 e5.} 12. Qd2 {[%emt 0:02:42]} Rb8 {[%emt 0:02:24]} 13. b3 {[%emt 0:03:15]} c5 {[%emt 0:06:42] White is slightly better.} 14. Bh6 {[%emt 0:01:33] [#]} Bb7 $146 {[%emt 0:11:16]} ({Predecessor:} 14... Rb4 15. Bxg7 Kxg7 16. Ra4 Rxa4 17. Nxa4 Bb7 18. Ra1 Bxe4 19. Bxa6 Bxg2 20. Bb5 Ba8 21. Bxd7 Qxd7 {1-0 (48) Rudolph,P (2230)-Wenner,F Hessen 1998}) 15. Bxg7 {[%emt 0:06:53]} (15. Rfd1 {looks sharper.} Ne5 16. Bxg7 Kxg7 17. Nd5) 15... Kxg7 {[%emt 0:00:06]} 16. f4 {[%emt 0:00:07][%cal Bf2f4,Bf4e5][%mdl 32]} Nf6 {[%emt 0:02:17]} 17. Qe3 {[%emt 0:05:14]} d5 {[%emt 0:09:03]} 18. exd5 {[%emt 0:05:09]} (18. Qxc5 $6 Rc8 19. Qb4 dxe4 $11) 18... Nxd5 {[%emt 0:00:05]} 19. Nxd5 {[%emt 0:00:32]} (19. Qxc5 $2 Rc8 20. Qa7 (20. Qd4+ $2 e5 $19) 20... Nxc3 $19) 19... Qxd5 {[%emt 0:00:05][%csl Gb7][%cal Rd5g2]} 20. Qe5+ {[%emt 0:00:28]} Qxe5 {[%emt 0:02:13]} 21. fxe5 {[%emt 0:00:03]} Be4 {[%emt 0:08:07]} (21... Ra8 $14) 22. Ra2 {[%emt 0:17:54]} ({White should try} 22. Bxa6 $16 {aiming for Ra2.} Bxc2 23. Rfc1 Bxb3 24. Rxc5) 22... Bb7 {[%emt 0:05:10]} 23. Rd1 {[%emt 0:03:06]} Rfd8 {[%emt 0:04:00] Inhibits Rd7.} 24. Raa1 {[%emt 0:14:52]} f6 {[%emt 0:01:46]} 25. exf6+ {[%emt 0:02:56]} Kxf6 {[%emt 0:03:48]} 26. Bc4 {[%emt 0:01:00]} e5 {[%emt 0:03:51]} ({Better is} 26... Kg5) 27. Rf1+ $16 {[%emt 0:04:27]} Kg5 {[%emt 0:07:33]} 28. Rae1 {[%emt 0:00:08]} e4 {[%emt 0:00:15]} 29. Rf7 {[%emt 0:00:56]} h5 {[%emt 0:13:25]} 30. Rc7 {[%emt 0:00:09]} h4 {[%emt 0:00:04]} (30... Rd2 $16) 31. Rxc5+ $18 {[%emt 0:00:46]} Kf4 {[%emt 0:02:31]} 32. Kf2 {[%emt 0:16:10]} (32. Rc7 $16) 32... Rd2+ $11 {[%emt 0:00:12]} 33. Be2 {[%emt 0:00:04] Intending g3+ and mate.} (33. Re2 $5 {[%cal Rg2g3]} e3+ 34. Ke1 $14) 33... e3+ {[%emt 0:03:27]} 34. Kg1 {[%emt 0:00:08] Black must now prevent Rf1+.} Rc8 $1 {[%emt 0:00:37]} 35. Rf1+ {[%emt 0:05:29]} Ke4 {[%emt 0:00:02]} 36. Bd3+ {[%emt 0:00:09]} (36. Rxc8 $11 {and White stays safe.} Bxc8 37. Bd3+ Ke5 38. Rf3 (38. Bxg6 $2 Bb7 $19) 38... Rd1+ 39. Rf1) 36... Kd4 $19 {[%emt 0:00:40][%mdl 1024] Black has strong compensation.} 37. Rg5 {[%emt 0:00:05]} Be4 $2 {[%emt 0:07:01] Black is more active.} (37... h3 $1 $17 {...e2 is the strong threat.} 38. Rxg6 Rxg2+ 39. Rxg2 Bxg2 40. Bxa6 (40. Rf6 $2 Re8 $19) 40... Rxc2 41. Rd1+ Ke5) 38. Rg4 {[%emt 0:02:58]} Re8 {[%emt 0:00:02]} 39. Rff4 {[%emt 0:05:14]} (39. Bxa6 e2 40. Re1 Ke3 41. Rxe2+ (41. Rxh4 $2 Rd1 $19) 41... Rxe2 42. Bxe2 Kxe2 $15) (39. Ra1 $11 Rxd3 40. cxd3 Kxd3 41. Rxh4) 39... Rd1+ $15 {[%emt 0:00:28]} 40. Rf1 {[%emt 0:00:08]} Rxd3 {[%emt 0:01:43]} 41. cxd3 {[%emt 0:00:04]} Kxd3 {[%emt 0:00:03][%mdl 4096] Endgame Hoping for ...e2. KRR-KRB} 42. Rd1+ $1 {[%emt 0:01:30]} ({Don't go for} 42. Rxh4 $2 e2 43. Ra1 Kd2 $19) 42... Kc3 {[%emt 0:00:39] Strongly threatening ...e2.} (42... Kc2 $5 43. Ra1 $8 Bd3 $11) 43. Rf4 {[%emt 0:00:57]} (43. Rxh4 $2 e2 44. Rh3+ Kc2 $19) 43... Bc2 {[%emt 0:01:19]} 44. Ra1 {[%emt 0:00:02][%mdl 8192] [#]} (44. Rc1 $11) 44... Kd2 $1 $19 {[%emt 0:00:24]} 45. Rd4+ {[%emt 0:00:46] [#]} ({Don't play} 45. Rxh4 e2 46. Rd4+ Bd3 $19) 45... Bd3 $1 {[%emt 0:00:27]} 46. Ra2+ {[%emt 0:00:44]} (46. g3 $142) 46... Kc3 {[%emt 0:00:08]} 47. Rxd3+ {[%emt 0:00:39]} (47. Rxh4 $19 e2 48. Ra1) 47... Kxd3 {[%emt 0:00:02] Black mates.} 48. Kf1 {[%emt 0:00:06]} Rc8 {[%emt 0:00:26][%cal Rc8c1]} 49. Ra1 {[%emt 0:00:07]} e2+ {[%emt 0:00:20]} 50. Ke1 {[%emt 0:00:39]} Rf8 {[%emt 0:00:04] A wild game.  Weighted Error Value: White=0.54/Black=0.16 (very precise)} 0-1